fUST/lending_fUST_20240506
["ID","MTS","AMOUNT","RATE_DAILY","PERIOD"]
[326454994,1714932650478,-500.0,0.00019985,2]
[326454995,1714932650487,-500.0,0.00019985,2]
[326454996,1714932650496,-508.0460742,0.00019985,2]
[326454997,1714932650506,-500.0,0.00019985,2]
[326454998,1714932650515,-500.0,0.00019985,2]
[326454999,1714932650524,-500.0,0.00019985,2]
[326455000,1714932650533,-2347.25,0.00019985,2]
[326455001,1714932650543,-500.0,0.00019985,2]
[326455002,1714932650552,-500.0,0.00019985,2]
[326455003,1714932650561,-711.88,0.00019985,2]
[326455004,1714932650571,-167.176915,0.00019985,2]
[326455005,1714932650580,-555.45,0.00019985,2]
[326455006,1714932650589,-167.176915,0.00019985,2]
[326455007,1714932650598,-500.0,0.00019985,2]
[326455008,1714932650607,-500.0,0.00019985,2]
[326455009,1714932650618,-580.526026,0.00019985,2]
[326455010,1714932650627,-580.526026,0.00019985,2]
[326455011,1714932650636,-500.0,0.00019985,2]
[326455012,1714932650645,-500.0,0.00019985,2]
[326455013,1714932650654,-500.0,0.00019985,2]
[326455014,1714932650664,-500.0,0.00019985,2]
[326455015,1714932650674,-500.0,0.00019985,2]
[326455016,1714932650684,-500.0,0.00019985,2]
[326455017,1714932650694,-500.0,0.00019985,2]
[326455018,1714932650703,-547.48755428,0.00019985,2]
[326455019,1714932650713,-423.46229807,0.00019985,2]
[326455020,1714932650723,-255.37384543,0.00019985,2]
[326455021,1714932650732,-500.0,0.00019985,2]
[326455022,1714932650742,-500.0,0.00019985,2]
[326455023,1714932650752,-500.0,0.00019985,2]
[326455024,1714932650821,-500.0,0.00019985,2]
[326455025,1714932650844,-500.0,0.00019985,2]
[326455026,1714932650853,-500.0,0.00019985,2]
[326455027,1714932650862,-500.0,0.00019985,2]
[326455028,1714932650874,-159.415164,0.00019985,2]
[326455029,1714932650885,-500.0,0.00019985,2]
[326455030,1714932650894,-159.415164,0.00019985,2]
[326455031,1714932650903,-500.0,0.00019985,2]
[326455032,1714932650913,-644.31173,0.00019985,2]
[326455033,1714932650923,-644.74,0.00019985,2]
[326455034,1714932650933,-644.31173,0.00019985,2]
[326455035,1714932650943,-500.0,0.00019985,2]
[326455036,1714932650951,-2337.95,0.00019986,2]
[326455037,1714932650961,-500.0,0.00019986,2]
[326455038,1714932650971,-990.43,0.00019986,2]
[326455039,1714932650980,-500.0,0.00019986,2]
[326455040,1714932650989,-500.0,0.00019986,2]
[326455041,1714932650999,-500.0,0.00019986,2]
[326455042,1714932651010,-2331.63,0.00019986,2]
[326455043,1714932651019,-636.01,0.00019986,2]
[326455044,1714932651028,-500.0,0.00019986,2]
[326455045,1714932651037,-500.0,0.00019986,2]
[326455046,1714932651047,-757.76,0.00019986,2]
[326455047,1714932651056,-876.95,0.00019986,2]
[326455048,1714932651065,-517.75827494,0.00019986,2]
[326455049,1714932651075,-194.05245078,0.00019986,2]
[326455050,1714932651084,-632.48,0.00019986,2]
[326455051,1714932651094,-574.84,0.00019986,2]
[326455052,1714932651103,-500.0,0.00019986,2]
[326455053,1714932651113,-500.0,0.00019986,2]
[326455054,1714932651125,-500.0,0.00019986,2]
[326455055,1714932651134,-500.0,0.00019986,2]
[326455056,1714932651143,-946.27,0.00019986,2]
[326455057,1714932651152,-500.0,0.00019986,2]
[326455058,1714932651161,-500.0,0.00019986,2]
[326455059,1714932651170,-500.0,0.00019986,2]
[326455060,1714932651179,-873.48,0.00019986,2]
[326455061,1714932651188,-3256.38,0.00019986,2]
[326455062,1714932651197,-500.0,0.00019986,2]
[326455063,1714932651207,-500.0,0.00019986,2]
[326455064,1714932651217,-500.0,0.00019986,2]
[326455065,1714932651227,-500.0,0.00019986,2]
[326455066,1714932651236,-500.0,0.00019986,2]
[326455067,1714932651248,-710.42,0.00019986,2]
[326455068,1714932651257,-500.0,0.00019986,2]
[326455069,1714932651267,-500.0,0.00019986,2]
[326455070,1714932651277,-151.0,0.00019986,2]
[326455071,1714932651287,-504.65142476,0.00019986,2]
[326455072,1714932651296,-445.060408,0.00019986,2]
[326455073,1714932651305,-506.36048922,0.00019986,2]
[326455074,1714932651315,-500.0,0.00019986,2]
[326455075,1714932651324,-445.060408,0.00019986,2]
[326455076,1714932651333,-510.91288116,0.00019986,2]
[326455077,1714932651342,-679.74,0.00019986,2]
[326455078,1714932651351,-500.0,0.00019986,2]
[326455079,1714932651360,-500.0,0.00019986,2]
[326455080,1714932651371,-1841.35,0.00019986,2]
[326455081,1714932651379,-500.0,0.00019986,2]
[326455082,1714932651389,-746.89,0.00019986,2]
[326455083,1714932651398,-251.07383,0.00019986,2]
[326455084,1714932651407,-251.07383,0.00019986,2]
[326455085,1714932651416,-500.0,0.00019986,2]
[326455086,1714932651425,-2203.03,0.00019986,2]
[326455087,1714932651434,-500.0,0.00019986,2]
[326455088,1714932651444,-264.34204224,0.00019986,2]
[326455089,1714932651453,-500.0,0.00019986,2]
[326455090,1714932651463,-525.05427271,0.00019986,2]
[326455091,1714932651472,-4070.18,0.00019986,2]
[326455092,1714932651481,-654.86,0.00019986,2]
[326455093,1714932651491,-654.86,0.00019986,2]
[326455094,1714932651499,-500.0,0.00019986,2]
[326455095,1714932651508,-1030.03,0.00019986,2]
[326455096,1714932651517,-500.0,0.00019986,2]
[326455097,1714932651526,-490.66999435,0.00019986,2]
[326455098,1714932651535,-167.176915,0.00019986,2]
[326455099,1714932651546,-555.45,0.00019986,2]
[326455100,1714932651556,-555.45,0.00019986,2]
[326455101,1714932651565,-555.45,0.00019986,2]
[326455102,1714932651574,-555.45,0.00019986,2]
[326455103,1714932651583,-555.6047186,0.00019986,2]
[326455104,1714932651593,-167.176915,0.00019986,2]
[326455105,1714932651602,-500.0,0.00019986,2]
[326455106,1714932651610,-580.526026,0.00019986,2]
[326455107,1714932651621,-500.0,0.00019986,2]
[326455108,1714932651630,-580.526026,0.00019986,2]
[326455109,1714932651639,-500.0,0.00019986,2]
[326455110,1714932651648,-930.74,0.00019986,2]
[326455111,1714932651657,-159.415164,0.00019986,2]
[326455112,1714932651667,-668.66,0.00019986,2]
[326455113,1714932651677,-159.415164,0.00019986,2]
[326455114,1714932651687,-644.31173,0.00019986,2]
[326455115,1714932651697,-500.0,0.00019986,2]
[326455116,1714932651706,-644.31173,0.00019986,2]
[326455117,1714932651715,-834.36,0.00019986,2]
[326455118,1714932651726,-500.0,0.00019987,2]
[326455119,1714932651737,-500.0,0.00019987,2]
[326455120,1714932651747,-500.0,0.00019987,2]
[326455121,1714932651757,-500.0,0.00019987,2]
[326455122,1714932651767,-500.0,0.00019987,2]
[326455123,1714932651777,-500.0,0.00019987,2]
[326455124,1714932651787,-500.0,0.00019987,2]
[326455125,1714932651796,-500.0,0.00019987,2]
[326455126,1714932651807,-492.58860469,0.00019987,2]
[326455127,1714932651817,-500.0,0.00019987,2]
[326455128,1714932651826,-505.26813756,0.00019987,2]
[326455129,1714932651837,-500.0,0.00019987,2]
[326455130,1714932651846,-500.0,0.00019987,2]
[326455131,1714932651856,-500.0,0.00019987,2]
[326455132,1714932651928,-500.0,0.00019987,2]
[326455133,1714932651938,-500.0,0.00019987,2]
[326455134,1714932651948,-500.0,0.00019987,2]
[326455135,1714932651957,-500.0,0.00019987,2]
[326455136,1714932651966,-500.0,0.00019987,2]
[326455137,1714932651976,-500.0,0.00019987,2]
[326455138,1714932651985,-500.0,0.00019987,2]
[326455139,1714932651994,-500.0,0.00019987,2]
[326455140,1714932652003,-500.0,0.00019987,2]
[326455141,1714932652012,-500.0,0.00019987,2]
[326455142,1714932652021,-1289.86,0.00019987,2]
[326455143,1714932652031,-500.0,0.00019987,2]
[326455144,1714932652040,-1628.83,0.00019987,2]
[326455145,1714932652049,-500.0,0.00019987,2]
[326455146,1714932652058,-500.0,0.00019987,2]
[326455147,1714932652068,-960.65,0.00019987,2]
[326455148,1714932652078,-1196.95,0.00019987,2]
[326455149,1714932652087,-500.0,0.00019987,2]
[326455150,1714932652097,-1000.0,0.00019987,2]
[326455151,1714932652106,-1851.08,0.00019987,2]
[326455152,1714932652117,-500.0,0.00019987,2]
[326455153,1714932652127,-500.0,0.00019987,2]
[326455154,1714932652136,-500.0,0.00019987,2]
[326455155,1714932652146,-500.0,0.00019987,2]
[326455156,1714932652155,-1313.02,0.00019987,2]
[326455157,1714932652165,-500.0,0.00019987,2]
[326455158,1714932652175,-1218.03,0.00019987,2]
[326455159,1714932652184,-655.97,0.00019987,2]
[326455160,1714932652194,-502.25,0.00019987,2]
[326455161,1714932652203,-500.0,0.00019987,2]
[326455162,1714932652212,-500.0,0.00019987,2]
[326455163,1714932652222,-5323.69,0.00019987,2]
[326455164,1714932652231,-2043.37,0.00019987,2]
[326455165,1714932652240,-747.36,0.00019987,2]
[326455166,1714932652249,-500.0,0.00019987,2]
[326455167,1714932652259,-500.0,0.00019987,2]
[326455168,1714932652268,-500.0,0.00019987,2]
[326455169,1714932652276,-500.0,0.00019987,2]
[326455170,1714932652286,-500.0,0.00019987,2]
[326455171,1714932652295,-500.0,0.00019987,2]
[326455172,1714932652304,-500.0,0.00019987,2]
[326455173,1714932652313,-500.0,0.00019987,2]
[326455174,1714932652322,-500.0,0.00019987,2]
[326455175,1714932652331,-500.0,0.00019987,2]
[326455176,1714932652341,-500.0,0.00019987,2]
[326455177,1714932652350,-500.0,0.00019987,2]
[326455178,1714932652359,-500.0,0.00019987,2]
[326455179,1714932652370,-500.0,0.00019987,2]
[326455180,1714932652379,-151.0,0.00019987,2]
[326455181,1714932652393,-151.0,0.00019987,2]
[326455182,1714932652412,-167.176915,0.00019987,2]
[326455183,1714932652428,-167.176915,0.00019987,2]
[326455184,1714932652446,-580.526026,0.00019987,2]
[326455185,1714932652467,-580.526026,0.00019987,2]
[326455186,1714932652484,-159.415164,0.00019987,2]
[326455187,1714932652501,-159.415164,0.00019987,2]
[326455188,1714932652516,-644.31173,0.00019987,2]
[326455189,1714932652533,-644.31173,0.00019987,2]
[326455190,1714932652553,-234.1253212,0.00019988,2]
[326455191,1714932652569,-500.0,0.00019988,2]
[326455192,1714932652583,-500.0,0.00019988,2]
[326455193,1714932652603,-654.86,0.00019988,2]
[326455194,1714932652618,-654.86,0.00019988,2]
[326455195,1714932652635,-654.86,0.00019988,2]
[326455196,1714932652650,-654.86,0.00019988,2]
[326455197,1714932652664,-654.86,0.00019988,2]
[326455198,1714932652680,-654.86,0.00019988,2]
[326455199,1714932652694,-654.86,0.00019988,2]
[326455200,1714932652708,-654.86,0.00019988,2]
[326455201,1714932652723,-654.86,0.00019988,2]
[326455202,1714932652737,-654.86,0.00019988,2]
[326455203,1714932652752,-654.90776651,0.00019988,2]
[326455204,1714932652767,-500.0,0.00019989,2]
[326455205,1714932652782,-500.0,0.00019989,2]
[326455206,1714932652796,-500.0,0.00019989,2]
[326455207,1714932652811,-500.0,0.00019989,2]
[326455208,1714932652825,-500.0,0.00019989,2]
[326455209,1714932652843,-612.71608171,0.00019989,2]
[326455210,1714932652857,-500.0,0.00019989,2]
[326455211,1714932652872,-341.98041601,0.00019989,2]
[326455212,1714932652888,-502.32331554,0.00019989,2]
[326455213,1714932652903,-500.0,0.00019989,2]
[326455214,1714932652918,-1367.61,0.00019989,2]
[326455215,1714932652933,-1016.68,0.00019989,2]
[326455216,1714932652948,-500.0,0.00019989,2]
[326455217,1714932652963,-502.6745408,0.00019989,2]
[326455218,1714932652978,-500.0,0.00019989,2]
[326455219,1714932652992,-500.0,0.00019989,2]
[326455220,1714932653006,-500.0,0.00019989,2]
[326455221,1714932653019,-500.0,0.00019989,2]
[326455222,1714932653033,-500.0,0.00019989,2]
[326455223,1714932653047,-500.0,0.00019989,2]
[326455224,1714932653062,-766.23,0.00019989,2]
[326455225,1714932653076,-500.0,0.00019989,2]
[326455226,1714932653090,-500.0,0.00019989,2]
[326455227,1714932653104,-824.13,0.00019989,2]
[326455228,1714932653119,-500.0,0.00019989,2]
[326455229,1714932653134,-507.31928205,0.00019989,2]
[326455230,1714932653237,-500.0,0.00019989,2]
[326455231,1714932653248,-500.0,0.00019989,2]
[326455232,1714932653258,-709.85,0.00019989,2]
[326455233,1714932653267,-500.0,0.00019989,2]
[326455234,1714932653275,-500.0,0.00019989,2]
[326455235,1714932653285,-772.36,0.00019989,2]
[326455236,1714932653294,-500.0,0.00019989,2]
[326455237,1714932653303,-229.20283325,0.00019989,2]
[326455238,1714932653312,-500.0,0.00019989,2]
[326455239,1714932653321,-861.94,0.00019989,2]
[326455240,1714932653330,-718.62,0.00019989,2]
[326455241,1714932653339,-500.0,0.00019989,2]
[326455242,1714932653349,-500.0,0.00019989,2]
[326455243,1714932653358,-630.24083283,0.00019989,2]
[326455244,1714932653368,-500.0,0.00019989,2]
[326455245,1714932653377,-500.0,0.00019989,2]
[326455246,1714932653386,-152.90197084,0.00019989,2]
[326455247,1714932653395,-500.0,0.00019989,2]
[326455248,1714932653404,-500.0,0.00019989,2]
[326455249,1714932653413,-500.0,0.00019989,2]
[326455250,1714932653422,-500.0,0.00019989,2]
[326455251,1714932653431,-500.0,0.00019989,2]
[326455252,1714932653440,-500.0,0.00019989,2]
[326455253,1714932653449,-500.0,0.00019989,2]
[326455254,1714932653458,-500.0,0.00019989,2]
[326455255,1714932653467,-500.0,0.00019989,2]
[326455256,1714932653476,-500.0,0.00019989,2]
[326455257,1714932653486,-500.0,0.00019989,2]
[326455258,1714932653495,-500.0,0.00019989,2]
[326455259,1714932653504,-500.0,0.00019989,2]
[326455260,1714932653513,-225.76240895,0.00019989,2]
[326455261,1714932653522,-500.0,0.00019989,2]
[326455262,1714932653531,-647.53,0.00019989,2]
[326455263,1714932653540,-2083.6,0.00019989,2]
[326455264,1714932653550,-500.0,0.00019989,2]
[326455265,1714932653559,-500.0,0.00019989,2]
[326455266,1714932653568,-500.0,0.00019989,2]
[326455267,1714932653577,-500.0,0.00019989,2]
[326455268,1714932653587,-500.0,0.00019989,2]
[326455269,1714932653597,-500.0,0.00019989,2]
[326455270,1714932653606,-500.0,0.00019989,2]
[326455271,1714932653617,-500.0,0.00019989,2]
[326455272,1714932653627,-500.0,0.00019989,2]
[326455273,1714932653636,-500.0,0.00019989,2]
[326455274,1714932653645,-500.0,0.00019989,2]
[326455275,1714932653655,-503.70057125,0.00019989,2]
[326455276,1714932653664,-500.0,0.00019989,2]
[326455277,1714932653673,-500.0,0.00019989,2]
[326455278,1714932653683,-660.8,0.00019989,2]
[326455279,1714932653694,-500.0,0.00019989,2]
[326455280,1714932653704,-500.0,0.00019989,2]
[326455281,1714932653716,-578.3,0.00019989,2]
[326455282,1714932653725,-500.0,0.00019989,2]
[326455283,1714932653734,-1145.21,0.00019989,2]
[326455284,1714932653743,-500.0,0.00019989,2]
[326455285,1714932653754,-500.0,0.00019989,2]
[326455286,1714932653765,-500.0,0.00019989,2]
[326455287,1714932653775,-594.285368,0.00019989,2]
[326455288,1714932653786,-500.0,0.00019989,2]
[326455289,1714932653797,-500.0,0.00019989,2]
[326455290,1714932653807,-500.0,0.00019989,2]
[326455291,1714932653816,-500.0,0.00019989,2]
[326455292,1714932653825,-500.0,0.00019989,2]
[326455293,1714932653837,-511.08829345,0.00019989,2]
[326455294,1714932653851,-500.0,0.00019989,2]
[326455295,1714932653860,-500.0,0.00019989,2]
[326455296,1714932653871,-500.0,0.00019989,2]
[326455297,1714932653882,-500.0,0.00019989,2]
[326455298,1714932653891,-514.04524402,0.00019989,2]
[326455299,1714932653900,-500.0,0.00019989,2]
[326455300,1714932653909,-500.0,0.00019989,2]
[326455301,1714932653919,-500.0,0.00019989,2]
[326455302,1714932653928,-425.709354,0.00019989,2]
[326455303,1714932653938,-500.0,0.00019989,2]
[326455304,1714932653948,-425.709354,0.00019989,2]
[326455305,1714932653958,-500.0,0.00019989,2]
[326455306,1714932653967,-151.0,0.00019989,2]
[326455307,1714932653976,-464.15282679,0.00019989,2]
[326455308,1714932653987,-151.0,0.00019989,2]
[326455309,1714932653996,-500.0,0.00019989,2]
[326455310,1714932654005,-500.0,0.00019989,2]
[326455311,1714932654014,-151.0,0.00019989,2]
[326455312,1714932654024,-572.06,0.00019989,2]
[326455313,1714932654034,-500.0,0.00019989,2]
[326455314,1714932654043,-151.0,0.00019989,2]
[326455315,1714932654052,-151.0,0.00019989,2]
[326455316,1714932654061,-445.060408,0.00019989,2]
[326455317,1714932654070,-445.060408,0.00019989,2]
[326455318,1714932654080,-445.060408,0.00019989,2]
[326455319,1714932654089,-445.060408,0.00019989,2]
[326455320,1714932654099,-1240.38,0.00019989,2]
[326455321,1714932654108,-151.0,0.00019989,2]
[326455322,1714932654119,-151.0,0.00019989,2]
[326455323,1714932654129,-251.07383,0.00019989,2]
[326455324,1714932654139,-151.0,0.00019989,2]
[326455325,1714932654148,-251.07383,0.00019989,2]
[326455326,1714932654158,-274.363597,0.00019989,2]
[326455327,1714932654168,-251.07383,0.00019989,2]
[326455328,1714932654177,-251.07383,0.00019989,2]
[326455329,1714932654186,-500.0,0.00019989,2]
[326455330,1714932654196,-500.0,0.00019989,2]
[326455331,1714932654205,-500.0,0.00019989,2]
[326455332,1714932654215,-167.176915,0.00019989,2]
[326455333,1714932654224,-167.176915,0.00019989,2]
[326455334,1714932654234,-580.526026,0.00019989,2]
[326455335,1714932654243,-580.526026,0.00019989,2]
[326455336,1714932654252,-500.0,0.00019989,2]
[326455337,1714932654261,-159.415164,0.00019989,2]
[326455338,1714932654270,-159.415164,0.00019989,2]
[326455339,1714932654344,-644.31173,0.00019989,2]
[326455340,1714932654353,-644.31173,0.00019989,2]
[326455341,1714932654363,-500.0,0.0001999,2]
[326455342,1714932654376,-500.0,0.0001999,2]
[326455343,1714932654385,-1065.51858128,0.00019991,2]
[326455344,1714932654394,-500.0,0.00019991,2]
[326455345,1714932654403,-500.0,0.00019991,2]
[326455346,1714932654412,-500.0,0.00019991,2]
[326455347,1714932654422,-500.0,0.00019992,2]
[326455348,1714932654431,-500.0,0.00019992,2]
[326455349,1714932654441,-500.0,0.00019992,2]
[326455350,1714932654450,-500.0,0.00019992,2]
[326455351,1714932654459,-201.38458365,0.00019992,2]
[326455352,1714932654469,-500.0,0.00019992,2]
[326455353,1714932654478,-500.0,0.00019992,2]
[326455354,1714932654487,-425.709354,0.00019992,2]
[326455355,1714932654496,-425.709354,0.00019992,2]
[326455356,1714932654506,-151.0,0.00019992,2]
[326455357,1714932654515,-151.0,0.00019992,2]
[326455358,1714932654525,-151.0,0.00019992,2]
[326455359,1714932654534,-620.6,0.00019992,3]
[326455360,1714932654543,-620.6,0.00019992,3]
[326455361,1714932654552,-150.0,0.00019992,3]
[326455362,1714932654561,-150.0,0.00019992,3]
[326455363,1714932654570,-500.0,0.00019993,2]
[326455364,1714932654579,-500.0,0.00019993,2]
[326455365,1714932654589,-413.54804716,0.00019993,2]
[326455366,1714932654598,-154.81422293,0.00019995,2]
[326455367,1714932654607,-453.63326844,0.0002,2]
[326455368,1714932654617,-893.87701251,0.0002,2]
[326455369,1714932654626,-67487.24026998,0.0002,2]
[326455370,1714932654635,-241.95136824,0.0002,2]
[326455371,1714932654644,-306.5821817,0.0002,2]
[326455372,1714932654654,-602.19881,0.0002,2]
[326455373,1714932654663,-602.19882,0.0002,2]
[326455374,1714932654672,-602.19882,0.0002,2]
[326455375,1714932654681,-602.19882,0.0002,2]
[326455376,1714932654691,-602.19882,0.0002,2]
[326455377,1714932654699,-602.19882,0.0002,2]
[326455378,1714932654709,-602.19882,0.0002,2]
[326455379,1714932654718,-602.19882,0.0002,2]
[326455380,1714932654727,-1416.54735772,0.0002,2]
[326455381,1714932654736,-1620.83376637,0.0002,10]
[326455382,1714932654745,-330.32334492,0.0002,2]
[326455383,1714932654755,-5462.53125909,0.0002,2]
[326455384,1714932654764,-3910.38730862,0.0002,2]
[326455385,1714932654774,-7945.14962897,0.0002,2]
[326455386,1714932654783,-445.060408,0.0002,2]
[326455387,1714932654792,-445.060408,0.0002,2]
[326455388,1714932654802,-151.0,0.0002,2]
[326455389,1714932654812,-251.07383,0.0002,2]
[326455390,1714932654822,-251.07383,0.0002,2]
[326455391,1714932654834,-167.176915,0.0002,2]
[326455392,1714932654852,-167.176915,0.0002,2]
[326455393,1714932654861,-580.526026,0.0002,2]
[326455394,1714932654873,-580.526026,0.0002,2]
[326455395,1714932654883,-159.415164,0.0002,2]
[326455396,1714932654895,-159.415164,0.0002,2]
[326455397,1714932654904,-644.31173,0.0002,2]
[326455398,1714932654914,-644.31173,0.0002,2]
[326455399,1714932654923,-150.0,0.00020032,3]
[326455400,1714932654933,-461.38,0.00020038,2]
[326455401,1714932654943,-204.0615346,0.000201,2]
[326455402,1714932654952,-150.0,0.0002022,3]
[326455403,1714932654962,-500.0,0.00020255,2]
[326455404,1714932654971,-638.64,0.00020255,2]
[326455405,1714932654981,-500.0,0.00020255,2]
[326455406,1714932654990,-500.0,0.00020255,2]
[326455407,1714932654999,-500.0,0.00020255,2]
[326455408,1714932655008,-726.61,0.00020255,2]
[326455409,1714932655017,-629.06,0.00020255,2]
[326455410,1714932655026,-3452.36,0.00020256,2]
[326455411,1714932655036,-15137.74,0.00020256,2]
[326455412,1714932655045,-1192.27,0.00020256,2]
[326455413,1714932655055,-500.0,0.00020256,2]
[326455414,1714932655064,-14946.04,0.00020256,2]
[326455415,1714932655074,-1576.0,0.00020256,2]
[326455416,1714932655083,-1509.8,0.00020256,2]
[326455417,1714932655092,-4309.9,0.00020256,2]
[326455418,1714932655101,-2055.05,0.00020256,2]
[326455419,1714932655110,-965.7,0.00020256,2]
[326455420,1714932655120,-8007.99,0.00020256,2]
[326455421,1714932655130,-1148.55,0.00020256,2]
[326455422,1714932655139,-1067.91,0.00020256,2]
[326455423,1714932655149,-159.415164,0.00020256,2]
[326455424,1714932655158,-159.415164,0.00020256,2]
[326455425,1714932655167,-644.31173,0.00020256,2]
[326455426,1714932655177,-644.31173,0.00020256,2]
[326455427,1714932655186,-500.0,0.00020257,2]
[326455428,1714932655195,-500.0,0.00020257,2]
[326455429,1714932655204,-500.0,0.00020257,2]
[326455430,1714932655213,-500.0,0.00020257,2]
[326455431,1714932655222,-500.0,0.00020257,2]
[326455432,1714932655231,-1000.0,0.00020257,2]
[326455433,1714932655240,-955.21,0.00020257,2]
[326455434,1714932655249,-637.92326348,0.00020257,2]
[326455435,1714932655258,-500.0,0.00020257,2]
[326455436,1714932655268,-500.0,0.00020257,2]
[326455437,1714932655277,-500.0,0.00020257,2]
[326455438,1714932655286,-500.0,0.00020257,2]
[326455439,1714932655295,-229.43194776,0.00020257,2]
[326455440,1714932655304,-500.0,0.00020257,2]
[326455441,1714932655313,-500.0,0.00020257,2]
[326455442,1714932655322,-500.0,0.00020257,2]
[326455443,1714932655331,-2955.1,0.00020257,2]
[326455444,1714932655341,-500.0,0.00020257,2]
[326455445,1714932655350,-509.16991806,0.00020257,2]
[326455446,1714932655359,-512.37,0.00020257,2]
[326455447,1714932655368,-500.0,0.00020257,2]
[326455448,1714932655378,-500.0,0.00020257,2]
[326455449,1714932655387,-500.0,0.00020257,2]
[326455450,1714932655397,-500.0,0.00020257,2]
[326455451,1714932655406,-500.0,0.00020257,2]
[326455452,1714932655415,-772.87,0.00020257,2]
[326455453,1714932655424,-500.0,0.00020257,2]
[326455454,1714932655434,-425.709354,0.00020257,2]
[326455455,1714932655443,-425.709354,0.00020257,2]
[326455456,1714932655452,-500.0,0.00020257,2]
[326455457,1714932655462,-277.400272,0.00020257,2]
[326455458,1714932655471,-500.0,0.00020257,2]
[326455459,1714932655480,-500.0,0.00020257,2]
[326455460,1714932655489,-500.0,0.00020257,2]
[326455461,1714932655498,-831.61,0.00020257,2]
[326455462,1714932655507,-151.0,0.00020257,2]
[326455463,1714932655516,-151.0,0.00020257,2]
[326455464,1714932655526,-500.0,0.00020257,2]
[326455465,1714932655535,-1284.71,0.00020257,2]
[326455466,1714932655544,-527.42451055,0.00020257,2]
[326455467,1714932655553,-500.0,0.00020257,2]
[326455468,1714932655562,-500.0,0.00020257,2]
[326455469,1714932655571,-628.18,0.00020257,2]
[326455470,1714932655581,-500.0,0.00020257,2]
[326455471,1714932655590,-500.0,0.00020257,2]
[326455472,1714932655599,-662.15,0.00020257,2]
[326455473,1714932655608,-500.0,0.00020257,2]
[326455474,1714932655618,-500.0,0.00020257,2]
[326455475,1714932655627,-500.0,0.00020257,2]
[326455476,1714932655637,-500.0,0.00020257,2]
[326455477,1714932655647,-500.0,0.00020257,2]
[326455478,1714932655656,-897.92,0.00020257,2]
[326455479,1714932655665,-1459.34,0.00020257,2]
[326455480,1714932655674,-445.060408,0.00020257,2]
[326455481,1714932655684,-445.060408,0.00020257,2]
[326455482,1714932655693,-500.0,0.00020257,2]
[326455483,1714932655702,-1216.31,0.00020257,2]
[326455484,1714932655711,-500.0,0.00020257,2]
[326455485,1714932655720,-500.0,0.00020257,2]
[326455486,1714932655729,-629.71,0.00020257,2]
[326455487,1714932655738,-500.0,0.00020257,2]
[326455488,1714932655747,-500.0,0.00020257,2]
[326455489,1714932655756,-500.0,0.00020257,2]
[326455490,1714932655765,-4486.5,0.00020257,2]
[326455491,1714932655775,-500.0,0.00020257,2]
[326455492,1714932655784,-500.0,0.00020257,2]
[326455493,1714932655793,-500.0,0.00020257,2]